lending/lending_fUSD_20251020
["ID","MTS","AMOUNT","RATE_DAILY","PERIOD"]
[391893453,1760961031694,-443.8799998,0.00020443,2]
[391893455,1760961031706,-32.05135255,0.00020443,2]
[391893456,1760961031715,-161.876703,0.0002177,2]
[391893457,1760961031725,-2459.72092602,0.00022492,2]
[391893458,1760961031734,-151.0,0.00023486,2]
[391893459,1760961031744,-223.37359115,0.00023486,2]
[391893460,1760961031753,-1200.0,0.00023499,2]
[391893461,1760961031762,-29239.93235325,0.000235,2]
[391893462,1760961031771,-168.88,0.00027323,2]
[391893463,1760961031780,-1048.427,0.00027691,2]
[391893464,1760961031790,-1286.716,0.00027691,2]
[391893465,1760961031800,-3410.0,0.00027691,2]
[391893466,1760961031810,-750.0,0.00027691,2]
[391893467,1760961031819,-571.0,0.00027691,2]
[391893468,1760961031828,-1590.0,0.00027691,2]
[391893469,1760961031838,-605.0,0.00027691,2]
[391893470,1760961031849,-2591.0,0.00027691,2]
[391893471,1760961031859,-550.67666474,0.00027699,2]
[391893472,1760961031869,-643.8005641,0.000277,5]
[391893473,1760961031878,-446.38832103,0.000277,5]
[391893474,1760961031893,-53.61167897,0.000277,5]
[391893475,1760961031902,-500.0,0.000277,5]
[391893476,1760961031912,-500.0,0.000277,5]
[391893477,1760961031922,-1950.66504254,0.000293,2]
[391893478,1760961031931,-150.99,0.000293,2]
[391893479,1760961031940,-695.14975754,0.000293,2]
[391893481,1760961032072,-1827.65912022,0.000293,2]
[391893483,1760961032083,-2682.41029886,0.000293,2]
[391893485,1760961032094,-563.89,0.000293,2]
[391893641,1760961037750,-1798.68670579,0.000293,2]
[391893642,1760961037761,-1077.0,0.000293,2]
[391893643,1760961037772,-1355.19411759,0.000293,2]
[391893644,1760961037782,-1030.94671274,0.0003,2]
[391893645,1760961037816,-8508.48328726,0.0003,2]
[391893646,1760961037826,-165.0,0.0003,14]
[391893647,1760961037836,-1268.0,0.00030691,2]
[391893648,1760961037846,-2508.612,0.00030691,2]
[391893649,1760961037854,-1590.0,0.00030691,2]
[391893650,1760961037863,-2591.0,0.00030691,2]
[391893651,1760961037872,-517.4276002,0.00030787,2]
[391893652,1760961037881,-2185.7943343,0.00030787,2]
[391893653,1760961037891,-166.0,0.00031644,14]
[391893654,1760961037900,-4000.0,0.00032109,2]
[391893655,1760961037909,-276.0,0.0003219,2]
[391893656,1760961037919,-274.0,0.00032331,2]
[391893658,1760961037927,-274.0,0.00032496,2]
[391893660,1760961037937,-645.11,0.00032523,2]
[391893662,1760961037945,-666.0,0.00032656,3]
[391893664,1760961037955,-9922.45,0.00032685,2]
[391893666,1760961037963,-2470.12,0.00032685,120]
[391893668,1760961037973,-200.0,0.00032695,2]
[391893670,1760961037982,-707.74,0.00032775,120]
[391893672,1760961037991,-1093.6,0.00032954,2]
[391893674,1760961038000,-150.0,0.00032954,2]
[391893675,1760961038009,-150.0,0.00032954,2]
[391893677,1760961038018,-168.35,0.00032954,2]
[391893679,1760961038027,-150.0,0.00032954,2]
[391893681,1760961038039,-168.35,0.00032954,2]
[391893683,1760961038050,-168.35,0.00032954,2]
[391893685,1760961038059,-150.0,0.00032954,2]
[391893687,1760961038068,-168.03,0.00032954,2]
[391893689,1760961038078,-1000.0,0.00033013,2]
[391893692,1760961038090,-250.0,0.00033136,7]
[391893694,1760961038101,-759.83,0.00033151,2]
[391893695,1760961038111,-441.43,0.000332,7]
[391893697,1760961038121,-274.0,0.00033369,2]
[391893699,1760961038131,-275.0,0.00033405,7]
[391893701,1760961038140,-279.41,0.00033412,2]
[391893703,1760961038149,-274.0,0.00033445,7]
[391893705,1760961038158,-274.0,0.00033601,2]
[391893707,1760961038168,-1094.63557,0.00033665,2]
[391893709,1760961038177,-164.76,0.00033687,2]
[391893711,1760961038187,-3929.41202999,0.000337,120]
[391893713,1760961038197,-1000.0,0.000337,2]
[391893715,1760961038206,-1000.0,0.000337,2]
[391893718,1760961038216,-1000.0,0.000337,2]
[391893720,1760961038226,-1000.0,0.000337,2]
[391893721,1760961038235,-1000.0,0.000337,2]
[391893724,1760961038246,-1000.0,0.000337,2]
[391893726,1760961038257,-1273.9,0.000337,2]
[391893728,1760961038266,-471.63,0.000337,2]
[391893730,1760961038275,-190.19926576,0.000337,120]
[391893732,1760961038284,-251.15382762,0.000337,120]
[391893734,1760961038293,-330.14912129,0.000337,120]
[391893736,1760961038303,-274.0,0.00033749,2]
[391893738,1760961038312,-151.22,0.00033776,2]
[391893740,1760961038323,-274.0,0.00033898,7]
[391893742,1760961038332,-967.0,0.00033937,2]
[391893744,1760961038343,-811.54907884,0.00034,4]
[391893746,1760961038352,-1000.0,0.00034,2]
[391893747,1760961038361,-480.88994744,0.00034019,2]
[391893749,1760961038371,-967.0,0.00034038,2]
[391893751,1760961038381,-480.88994742,0.00034045,2]
[391893753,1760961038391,-480.88994742,0.00034071,2]
[391893755,1760961038401,-967.0,0.00034073,2]
[391893757,1760961038415,-7748.87574403,0.00034074,2]
[391893759,1760961038425,-4942.73086415,0.00034077,2]
[391893761,1760961038435,-3054.224983,0.00034087,2]
[391893764,1760961038445,-8772.4795842,0.00034087,2]
[391893765,1760961038455,-7748.87574399,0.00034088,2]
[391893767,1760961038466,-639.4249,0.0003409,2]
[391893769,1760961038476,-4942.73086415,0.00034091,2]
[391893771,1760961038485,-179.96545,0.00034091,30]
[391893773,1760961038495,-151.0,0.00034091,30]
[391893775,1760961038504,-151.0,0.00034091,30]
[391893777,1760961038513,-151.0,0.00034091,30]
[391893779,1760961038523,-156.387024,0.00034091,30]
[391893782,1760961038535,-151.0,0.00034091,30]
[391893784,1760961038544,-151.0,0.00034091,30]
[391893786,1760961038554,-151.0,0.00034091,30]
[391893788,1760961038563,-170.358921,0.00034091,30]
[391893790,1760961038572,-170.358921,0.00034091,30]
[391893792,1760961038581,-170.358921,0.00034091,30]
[391893793,1760961038594,-170.358921,0.00034091,30]
[391893796,1760961038605,-151.0,0.00034091,30]
[391893798,1760961038614,-151.0,0.00034091,30]
[391893800,1760961038623,-151.0,0.00034091,30]
[391893802,1760961038632,-151.0,0.00034091,30]
[391893803,1760961038642,-300.0,0.00034091,30]
[391893805,1760961038653,-165.604932,0.00034091,30]
[391893808,1760961038663,-300.0,0.00034091,30]
[391893809,1760961038672,-300.0,0.00034091,30]
[391893811,1760961038681,-1211.273891,0.00034091,30]
[391893813,1760961038691,-300.0,0.00034091,30]
[391893815,1760961038700,-1211.273891,0.00034091,30]
[391893818,1760961038710,-151.0,0.00034091,30]
[391893819,1760961038720,-1211.273891,0.00034091,30]
[391893821,1760961038729,-1211.273891,0.00034091,30]
[391893823,1760961038738,-151.0,0.00034091,30]
[391893825,1760961038748,-151.0,0.00034091,30]
[391893827,1760961038758,-151.0,0.00034091,30]
[391893829,1760961038768,-151.0,0.00034091,30]
[391893832,1760961038777,-151.0,0.00034091,30]
[391893834,1760961038787,-217.079353,0.00034091,30]
[391893836,1760961038798,-151.0,0.00034091,30]
[391893837,1760961038808,-151.0,0.00034091,30]
[391893838,1760961038817,-151.0,0.00034091,30]
[391893839,1760961038828,-151.0,0.00034091,30]
[391893840,1760961038840,-151.0,0.00034091,30]
[391893841,1760961038850,-151.0,0.00034091,30]
[391893842,1760961038860,-480.88994742,0.00034097,2]
[391893843,1760961038871,-500.0,0.000341,7]
[391893844,1760961038881,-317.49538641,0.000341,7]
[391893845,1760961038891,-373.53212605,0.000341,7]
[391893846,1760961038901,-411.30591508,0.000341,7]
[391893847,1760961038911,-140354.0766,0.00034101,2]
[391893848,1760961038920,-151.0,0.00034101,30]
[391893850,1760961038929,-151.0,0.00034101,30]
[391893851,1760961038939,-151.0,0.00034101,30]
[391893853,1760961038949,-1211.273891,0.00034101,30]
[391893856,1760961038959,-1211.273891,0.00034101,30]
[391893858,1760961038970,-151.0,0.00034101,30]
[391893859,1760961038980,-1211.273891,0.00034101,30]
[391893861,1760961038990,-1211.273891,0.00034101,30]
[391893863,1760961038999,-151.0,0.00034101,30]
[391893866,1760961039010,-151.0,0.00034101,30]
[391893867,1760961039020,-151.0,0.00034101,30]
[391893869,1760961039030,-151.0,0.00034101,30]
[391893871,1760961039040,-151.0,0.00034101,30]
[391893873,1760961039052,-151.0,0.00034101,30]
[391893875,1760961039062,-151.0,0.00034101,30]
[391893877,1760961039071,-151.0,0.00034101,30]
[391893879,1760961039081,-151.0,0.00034101,30]
[391893882,1760961039092,-7748.87574399,0.00034102,2]
[391893884,1760961039101,-4942.73086415,0.00034105,2]
[391893885,1760961039111,-4942.73086415,0.00034119,2]
[391893887,1760961039122,-967.0,0.00034119,7]
[391893889,1760961039131,-480.88994742,0.00034124,2]
[391893891,1760961039140,-967.0,0.00034129,2]
[391893893,1760961039150,-4942.73086415,0.00034133,2]
[391893896,1760961039161,-4942.73086415,0.00034146,2]
[391893898,1760961039170,-480.88994742,0.0003415,2]
[391893900,1760961039180,-4942.73086415,0.0003416,2]
[391893902,1760961039189,-696.12244366,0.00034162,6]
[391893904,1760961039198,-5000.0,0.0003417,2]
[391893906,1760961039207,-151.0,0.00034174,30]
[391893908,1760961039217,-151.0,0.00034174,30]
[391893910,1760961039227,-151.0,0.00034174,30]
[391893912,1760961039237,-151.0,0.00034174,30]
[391893913,1760961039246,-151.0,0.00034174,30]
[391893915,1760961039257,-170.358921,0.00034174,30]
[391893917,1760961039267,-170.358921,0.00034174,30]
[391893919,1760961039276,-170.358921,0.00034174,30]
[391893921,1760961039285,-170.358921,0.00034174,30]
[391893923,1760961039295,-151.0,0.00034174,30]
[391893925,1760961039304,-151.0,0.00034174,30]
[391893927,1760961039315,-151.0,0.00034174,30]
[391893929,1760961039324,-264.780986,0.00034174,30]
[391893931,1760961039334,-300.0,0.00034174,30]
[391893933,1760961039343,-300.0,0.00034174,30]
[391893935,1760961039352,-300.0,0.00034174,30]
[391893954,1760961039506,-1211.273891,0.00034174,30]
[391893956,1760961039517,-300.0,0.00034174,30]
[391893958,1760961039526,-1211.273891,0.00034174,30]
[391893960,1760961039535,-151.0,0.00034174,30]
[391893962,1760961039545,-1211.273891,0.00034174,30]
[391893964,1760961039554,-1211.273891,0.00034174,30]
[391893966,1760961039564,-151.0,0.00034174,30]
[391893968,1760961039574,-151.0,0.00034174,30]
[391893970,1760961039583,-151.0,0.00034174,30]
[391893972,1760961039597,-151.0,0.00034174,30]
[391893974,1760961039607,-151.0,0.00034174,30]
[391893976,1760961039616,-151.0,0.00034174,30]
[391893978,1760961039626,-151.0,0.00034174,30]
[391893980,1760961039635,-4942.73086415,0.00034174,2]
[391893982,1760961039645,-480.88994742,0.00034176,2]
[391893984,1760961039654,-153.179288,0.00034177,30]
[391893986,1760961039663,-4942.73086415,0.00034188,2]
[391893988,1760961039672,-388.86481759,0.00034191,2]
[391893990,1760961039681,-151.0,0.00034191,30]
[391893992,1760961039691,-151.0,0.00034191,30]
[391893994,1760961039700,-151.0,0.00034191,30]
[391893996,1760961039709,-151.0,0.00034191,30]
[391893998,1760961039719,-170.358921,0.00034191,30]
[391894000,1760961039729,-170.358921,0.00034191,30]
[391894002,1760961039738,-170.358921,0.00034191,30]
[391894004,1760961039747,-170.358921,0.00034191,30]
[391894006,1760961039756,-151.0,0.00034191,30]
[391894008,1760961039769,-151.0,0.00034191,30]
[391894010,1760961039778,-151.0,0.00034191,30]
[391894012,1760961039787,-300.0,0.00034191,30]
[391894014,1760961039796,-300.0,0.00034191,30]
[391894015,1760961039811,-300.0,0.00034191,30]
[391894017,1760961039821,-1211.273891,0.00034191,30]
[391894019,1760961039830,-300.0,0.00034191,30]
[391894021,1760961039839,-1211.273891,0.00034191,30]
[391894023,1760961039849,-151.0,0.00034191,30]
[391894025,1760961039859,-1211.273891,0.00034191,30]
[391894027,1760961039868,-1211.273891,0.00034191,30]
[391894029,1760961039878,-151.0,0.00034191,30]
[391894031,1760961039887,-151.0,0.00034191,30]
[391894033,1760961039897,-151.0,0.00034191,30]
[391894035,1760961039905,-20564.8765465,0.00034192,3]
[391894037,1760961039919,-151.0,0.00034198,7]
[391894039,1760961039931,-156.587,0.00034198,7]
[391894041,1760961039940,-162.380719,0.00034198,7]
[391894043,1760961039949,-168.3888056,0.00034198,7]
[391894045,1760961039958,-174.61919141,0.00034198,7]
[391894047,1760961039967,-181.08010149,0.00034198,7]
[391894049,1760961039976,-187.78006525,0.00034198,7]
[391894051,1760961039985,-194.72792766,0.00034198,7]
[391894053,1760961039995,-160.31295245,0.00034198,7]
[391894055,1760961040005,-151.0,0.00034198,30]
[391894057,1760961040014,-151.0,0.00034198,30]
[391894059,1760961040024,-1211.273891,0.00034198,30]
[391894061,1760961040033,-1211.273891,0.00034198,30]
[391894063,1760961040050,-1211.273891,0.00034198,30]
[391894065,1760961040059,-1211.27390051,0.00034198,30]
[391894067,1760961040069,-151.0,0.00034198,30]
[391894069,1760961040078,-151.0,0.00034198,30]
[391894071,1760961040088,-195.40907256,0.00034198,30]
[391894073,1760961040098,-151.0,0.00034198,30]
[391894075,1760961040108,-151.0,0.00034198,30]
[391894077,1760961040117,-151.0,0.00034198,30]
[391894079,1760961040126,-226.958833,0.00034198,30]
[391894081,1760961040136,-151.0,0.000342,2]
[391894083,1760961040144,-691.12780092,0.000342,2]
[391894085,1760961040153,-175.17,0.000342,2]
[391894087,1760961040163,-313.20837644,0.000342,8]
[391894090,1760961040173,-1000.0,0.00034201,2]
[391894092,1760961040182,-739.83375188,0.00034201,2]
[391894094,1760961040191,-151.0,0.00034201,30]
[391894096,1760961040200,-151.0,0.00034201,30]
[391894098,1760961040210,-151.0,0.00034201,30]
[391894100,1760961040219,-151.0,0.00034201,30]
[391894102,1760961040230,-170.358921,0.00034201,30]
[391894104,1760961040239,-170.358921,0.00034201,30]
[391894106,1760961040248,-170.358921,0.00034201,30]
[391894108,1760961040257,-170.358921,0.00034201,30]
[391894110,1760961040266,-300.0,0.00034201,30]
[391894112,1760961040275,-300.0,0.00034201,30]
[391894114,1760961040284,-300.0,0.00034201,30]
[391894116,1760961040292,-300.0,0.00034201,30]
[391894118,1760961040301,-739.83375187,0.00034201,2]
[391894119,1760961040310,-739.83375187,0.00034201,2]
[391894121,1760961040319,-739.83375187,0.00034202,2]
[391894123,1760961040328,-739.83375187,0.00034202,2]
[391894125,1760961040338,-739.83375187,0.00034202,2]
[391894127,1760961040347,-739.83375187,0.00034202,2]
[391894129,1760961040356,-475.93135235,0.00034202,30]
[391894131,1760961040365,-5690.0250032,0.00034202,2]
[391894133,1760961040375,-2907.16408408,0.00034202,2]
[391894135,1760961040385,-4942.73086415,0.00034202,2]
[391894137,1760961040394,-480.88994742,0.00034202,2]
[391894139,1760961040403,-967.0,0.00034244,2]
[391894141,1760961040412,-20564.8765465,0.0003426,3]
[391894143,1760961040421,-151.0,0.00034261,30]
[391894145,1760961040430,-151.0,0.00034261,30]
[391894147,1760961040439,-151.0,0.00034261,30]
[391894149,1760961040448,-170.358921,0.00034261,30]
[391894151,1760961040456,-170.358921,0.00034261,30]
[391894153,1760961040466,-170.358921,0.00034261,30]
[391894155,1760961040475,-170.358926,0.00034261,30]
[391894156,1760961040484,-300.0,0.00034261,30]
[391894157,1760961040492,-300.0,0.00034261,30]
[391894158,1760961040501,-300.0,0.00034261,30]
[391894159,1760961040510,-300.0,0.00034261,30]
[391894160,1760961040518,-151.0,0.00034261,30]
[391894161,1760961040527,-151.0,0.00034261,30]
[391894162,1760961040536,-151.0,0.00034261,30]
[391894163,1760961040544,-20564.8765465,0.00034264,3]
[391894164,1760961040554,-400.0,0.0003427,2]
[391894165,1760961040563,-20564.8765465,0.00034271,3]
[391894166,1760961040572,-20564.8765465,0.00034271,3]
[391894168,1760961040581,-500.0,0.00034273,5]
[391894170,1760961040590,-10.90240347,0.00034273,5]
[391894172,1760961040606,-202.37804215,0.00034273,5]
[391894174,1760961040615,-500.0,0.00034273,5]
[391894176,1760961040625,-157.82073849,0.00034273,5]
[391894178,1760961040636,-342.17926151,0.00034273,5]
[391894181,1760961040646,-439.0,0.00034274,2]
[391894183,1760961040655,-3181.37823625,0.00034274,2]
[391894185,1760961040666,-2506.7094199,0.00034274,2]
[391894187,1760961040678,-1073.87974771,0.00034274,2]
[391894189,1760961040690,-2827.03259614,0.00034274,2]
[391894191,1760961040699,-331.88757882,0.00034274,2]
[391894193,1760961040711,-4184.156181,0.00034274,2]
[391894198,1760961040746,-5207.95624018,0.00034274,2]
[391894200,1760961040755,-325.0,0.00034274,2]
[391894202,1760961040764,-402.0,0.00034274,2]
[391894204,1760961040773,-1854.82575981,0.0003428,3]
[391894206,1760961040784,-472.86339972,0.0003428,3]
[391894221,1760961040916,-875.28004914,0.0003428,3]
[391894224,1760961040927,-472.01634291,0.0003428,3]
[391894226,1760961040938,-874.15049327,0.0003428,3]
[391894228,1760961040950,-3885.90000001,0.0003428,3]
[391894230,1760961040961,-966.5560137,0.0003428,3]
[391894232,1760961040972,-1856.86746935,0.0003428,3]
[391894421,1760961042851,-7748.87574399,0.00034117,2]
[391894423,1760961042861,-151.0,0.00034274,2]
[391894424,1760961042871,-345.56390046,0.00034274,2]
[391894426,1760961042880,-29871.29356509,0.0003428,3]
[391894428,1760961042890,-82259.506186,0.00034282,3]
[391894429,1760961042899,-17802.7277914,0.00034282,3]
[391894430,1760961042908,-5800.0,0.00034283,2]
[391894432,1760961042917,-150.0,0.00034288,2]
[391894433,1760961042926,-150.0,0.00034288,2]
[391894435,1760961042935,-500.0,0.00034288,2]
[391894437,1760961042944,-150.0,0.00034288,2]
[391894438,1760961042953,-500.0,0.0003429,8]
[391894440,1760961042962,-20564.8765465,0.0003429,3]
[391894441,1760961042971,-1978.08086571,0.0003429,3]
[391894443,1760961042981,-381.6901614,0.0003429,8]
[391894444,1760961042990,-61694.6296395,0.00034291,3]
[391894446,1760961042999,-15824.6469257,0.00034291,3]
[391894448,1760961043009,-526.15038518,0.00034291,8]
[391894449,1760961043018,-20564.8765465,0.00034291,3]
[391894451,1760961043027,-5800.0,0.00034292,2]
[391894453,1760961043036,-123389.259279,0.00034292,3]
[391894454,1760961043049,-27693.1321199,0.00034292,3]
[391894456,1760961043059,-356.00051283,0.00034292,2]
[391894457,1760961043069,-356.00051283,0.00034292,2]
[391894459,1760961043079,-356.00051283,0.00034292,2]
[391894461,1760961043089,-150.31,0.00034292,2]
[391894462,1760961043099,-150.31,0.00034292,2]
[391894464,1760961043108,-150.31,0.00034292,2]
[391894465,1760961043121,-150.31,0.00034292,2]
[391894467,1760961043131,-150.31,0.00034292,2]
[391894469,1760961043140,-150.31,0.00034292,2]
[391894470,1760961043150,-150.31,0.00034292,2]
[391894472,1760961043159,-150.31,0.00034292,2]
[391894473,1760961043168,-150.31,0.00034292,2]
[391894475,1760961043177,-150.31,0.00034292,2]
[391894477,1760961043186,-150.31,0.00034292,2]
[391894478,1760961043195,-150.31,0.00034292,2]
[391894480,1760961043204,-150.31,0.00034292,2]
[391894481,1760961043213,-150.31,0.00034292,2]
[391894483,1760961043222,-150.31,0.00034292,2]
[391894485,1760961043231,-150.31,0.00034292,2]
[391894486,1760961043240,-150.31,0.00034292,2]
[391894488,1760961043249,-150.31,0.00034292,2]
[391894490,1760961043258,-150.31,0.00034292,2]
[391894491,1760961043267,-150.31,0.00034292,2]
[391894493,1760961043276,-150.31,0.00034292,2]
[391894494,1760961043285,-150.31,0.00034292,2]
[391894496,1760961043294,-150.31,0.00034292,2]
[391894498,1760961043303,-150.31,0.00034292,2]
[391894499,1760961043312,-150.31,0.00034292,2]
[391894501,1760961043321,-150.31,0.00034292,2]
[391894503,1760961043331,-150.31,0.00034292,2]
[391894504,1760961043340,-150.31,0.00034292,2]
[391894506,1760961043349,-150.31,0.00034292,2]
[391894507,1760961043357,-156.656,0.00034299,2]
[391894509,1760961043366,-161.0,0.000343,120]
[391894510,1760961043376,-150.0,0.000343,60]
[391894512,1760961043385,-940.71528868,0.000343,2]
[391894514,1760961043394,-301.0,0.000343,2]
[391894515,1760961043403,-679.9475,0.000343,2]
[391894517,1760961043412,-836.0,0.000343,2]
[391894518,1760961043421,-5800.0,0.000343,2]
[391894520,1760961043430,-443.0,0.000343,2]
[391894522,1760961043445,-1135.2792,0.000343,2]
[391894524,1760961043454,-969.0,0.000343,2]
[391894525,1760961043463,-1000.0,0.000343,13]
[391894527,1760961043473,-1000.0,0.000343,13]
[391894529,1760961043482,-1000.0,0.000343,13]
[391894530,1760961043491,-1000.0,0.000343,13]
[391894532,1760961043500,-1000.0,0.000343,13]
[391894534,1760961043510,-1000.0,0.000343,13]
[391894535,1760961043519,-1000.0,0.000343,13]
[391894537,1760961043528,-1000.0,0.000343,13]
[391894538,1760961043537,-57008.73298721,0.00034301,2]
[391894755,1760961045878,-4303.903626,0.00034131,2]
[391894757,1760961045890,-445.5,0.00034131,2]
[391894759,1760961045902,-907.439499,0.00034131,2]
[391895192,1760961057589,151.0,0.00018815,2]
[391895193,1760961074646,151.0,0.00019449,2]
[391895194,1760961091120,151.0,0.00019677,2]
[391895195,1760961108112,151.0,0.00019803,2]
[391895206,1760961124307,151.0,0.00019937,2]
[391895207,1760961125692,500.46962057,0.00034321,30]
[391895208,1760961128960,200.0,0.00034321,30]
[391895209,1760961129496,151.0,0.00034321,30]
[391895210,1760961130145,151.0,0.00034321,30]
[391895211,1760961130818,151.0,0.00034321,30]
[391895212,1760961131669,151.0,0.00034321,30]
[391895213,1760961132097,151.0,0.00034321,30]
[391895214,1760961132728,151.0,0.00034321,30]
[391895215,1760961133393,151.0,0.00034321,30]
[391895216,1760961133717,250.0,0.00034321,30]
[391895217,1760961134391,250.0,0.00034321,30]
[391895218,1760961135094,250.0,0.00034321,30]
[391895219,1760961135761,250.0,0.00034321,30]
[391895220,1760961136417,250.0,0.00034321,30]
[391895221,1760961137075,250.0,0.00034321,30]
[391895222,1760961137723,250.0,0.00034321,30]
[391895223,1760961138402,250.0,0.00034321,30]
[391895224,1760961138675,200.0,0.00034321,30]
[391895225,1760961157347,151.0,0.00019937,2]
[391895226,1760961173873,151.0,0.00019504,2]
[391895229,1760961211753,151.0,0.0001978,2]
[391895236,1760961423715,195.0,0.00029655,120]
[391895237,1760961425323,171.49024476,0.00034321,30]
[391895239,1760961428259,250.0,0.00034321,30]
[391895240,1760961428960,250.0,0.00034321,30]
[391895241,1760961435392,250.0,0.00034321,30]
[391895242,1760961436005,250.0,0.00034321,30]
[391895243,1760961436681,250.0,0.00034321,30]
[391895244,1760961437372,250.0,0.00034321,30]
[391895245,1760961438128,250.0,0.00034321,30]
[391895246,1760961438749,250.0,0.00034321,30]
[391895249,1760961485549,300.0,0.00029142,120]
[391895254,1760961663323,172.78195022,0.00019937,2]
[391895255,1760961664027,-315.24883296,0.00027754,2]
[391895259,1760961738171,248.92,0.00034322,30]
[391895264,1760961848119,195.0,0.00027754,120]
[391895270,1760961905347,300.0,0.00027754,120]
[391895271,1760961933313,250.0,0.00017,2]
[391895272,1760961934389,300.0,0.00019,2]
[391895279,1760962065516,160.53,0.00034322,30]
[391895280,1760962094980,307.76,0.00013699,2]
[391895292,1760962188147,156.7,0.00016471,2]
[391895293,1760962188343,156.7,0.00017844,2]
[391895294,1760962188553,156.7,0.00019217,2]
[391895295,1760962200420,-307.76,0.00020187,2]
[391895296,1760962200444,-51.84226826,0.00020589,2]
[391895297,1760962202769,-104.85773174,0.00020589,2]
[391895298,1760962202793,-156.7,0.00021962,2]
[391895299,1760962202815,-16.09371577,0.00023335,2]
[391895300,1760962205296,-166.66,0.00022648,2]
[391895301,1760962206714,-262.24,0.00022648,2]
[391895302,1760962209054,-154.22,0.00022648,2]
[391895317,1760962231865,-35.52748502,0.00022648,2]
[391895319,1760962231875,-140.60628423,0.00023335,2]
[391895321,1760962231883,-156.7,0.00024707,2]
[391895322,1760962231896,-156.7,0.0002608,2]
[391895323,1760962231905,-250.0,0.00026674,2]
[391895324,1760962231914,-307.76,0.00026676,2]
[391895325,1760962231923,-156.7,0.00027453,2]
[391895326,1760962231933,-1200.0,0.00027753,2]
[391895327,1760962231943,-172.78195023,0.00027754,2]
[391895328,1760962231952,-296.32273459,0.00027754,2]
[391895329,1760962231962,-184.75116704,0.00027754,2]
[391895330,1760962231972,-500.0,0.00027754,2]
[391895331,1760962231982,-500.0,0.00027754,2]
[391895332,1760962231991,-302.51322065,0.00027754,2]
[391895333,1760962232000,-885.403,0.00027754,2]
[391895334,1760962232010,-670.977,0.00027754,2]
[391895335,1760962232020,-156.7,0.00028825,2]
[391895336,1760962232029,-477.686,0.00028918,2]
[391895337,1760962232039,-1459.0,0.00030112,2]
[391895338,1760962232047,-156.7,0.00030198,2]
[391895339,1760962232057,-279.14,0.00030278,2]
[391895340,1760962232067,-300.0,0.00030528,120]
[391895341,1760962232077,-166.66,0.00031556,30]
[391895342,1760962232087,-156.7,0.0003157,2]
[391895343,1760962232096,-608.11,0.00032125,30]
[391895344,1760962232106,-166.66,0.0003222,30]
[391895345,1760962232115,-166.66,0.00032884,30]
[391895346,1760962232124,-773.74,0.00032928,120]
[391895347,1760962232133,-5000.0,0.00032943,2]
[391895348,1760962232144,-156.7,0.00032943,2]
[391895349,1760962232153,-250.0,0.00033088,2]
[391895350,1760962232163,-695.75,0.00033141,2]
[391895351,1760962232172,-695.75,0.00033141,2]
[391895352,1760962232182,-307.76,0.00033165,2]
[391895353,1760962232191,-1000.0,0.0003317,2]
[391895354,1760962232200,-161.68,0.0003317,2]
[391895355,1760962232209,-1000.0,0.0003317,2]
[391895356,1760962232219,-475.11,0.00033506,2]